[Event "*** MasterClass Titled Tuesday Blitz"]
[Site "Chess.com"]
[Date "2017.08.01"]
[Round "9"]
[White "Rsnr"]
[Black "hermionegrangermagic"]
[Result "1-0"]
[WhiteElo "2521"]
[BlackElo "2378"]
[TimeControl "180+2"]
[EndTime "15:04:57 PDT"]
[Termination "Rsnr won by resignation"]

1. d4 {[%clk 0:03:01.9]} 1... d5 {[%clk 0:02:59.7]} 2. c4 {[%clk 0:03:03.4]}
2... e6 {[%clk 0:02:59.5]} 3. Nc3 {[%clk 0:03:04.3]} 3... Nf6 {[%clk 0:02:58.5]}
4. cxd5 {[%clk 0:03:05.7]} 4... exd5 {[%clk 0:03:00.4]} 5. Bg5 {[%clk 0:03:07]}
5... Be7 {[%clk 0:03:01.5]} 6. e3 {[%clk 0:03:08.4]} 6... O-O {[%clk 0:02:59.5]}
7. Bd3 {[%clk 0:03:09.6]} 7... c6 {[%clk 0:02:59.3]} 8. Qc2 {[%clk 0:03:11]}
8... Nbd7 {[%clk 0:02:55.8]} 9. Nge2 {[%clk 0:03:11.2]} 9... Re8 {[%clk
0:02:54.4]} 10. O-O {[%clk 0:03:12.1]} 10... h6 {[%clk 0:02:55.5]} 11. Bh4
{[%clk 0:03:13.2]} 11... Ne4 {[%clk 0:02:54.4]} 12. Bxe7 {[%clk 0:03:12.6]}
12... Qxe7 {[%clk 0:02:55.1]} 13. Rae1 {[%clk 0:03:14.3]} 13... Ndf6 {[%clk
0:02:33.3]} 14. f3 {[%clk 0:03:15.4]} 14... Nxc3 {[%clk 0:02:32.9]} 15. Nxc3
{[%clk 0:03:17.3]} 15... Qd6 {[%clk 0:02:31.3]} 16. a3 {[%clk 0:03:18.2]} 16...
a5 {[%clk 0:02:31.6]} 17. Na4 {[%clk 0:03:18.9]} 17... h5 {[%clk 0:02:00.5]} 18.
Qc5 {[%clk 0:02:56.3]} 18... Qc7 {[%clk 0:01:54.4]} 19. e4 {[%clk 0:02:57.4]}
19... dxe4 {[%clk 0:01:33.9]} 20. fxe4 {[%clk 0:02:59.3]} 20... Be6 {[%clk
0:01:25.4]} 21. d5 {[%clk 0:02:36.7]} 21... Bg4 {[%clk 0:01:06.8]} 22. d6 {[%clk
0:02:34.9]} 22... Qd8 {[%clk 0:01:02.7]} 23. Nb6 {[%clk 0:02:28.9]} 23... Nd7
{[%clk 0:00:52.3]} 24. Nxd7 {[%clk 0:02:30.2]} 24... Qxd7 {[%clk 0:00:43.3]} 25.
e5 {[%clk 0:02:31.8]} 25... g6 {[%clk 0:00:36.8]} 26. Rf6 {[%clk 0:01:50]} 26...
Re6 {[%clk 0:00:24.1]} 27. Bc4 {[%clk 0:01:44.6]} 27... Rxf6 {[%clk 0:00:17.7]}
28. exf6 {[%clk 0:01:46.5]} 28... b5 {[%clk 0:00:10.2]} 29. Re7 {[%clk
0:01:46.4]} 29... Qf5 {[%clk 0:00:07.8]} 30. Bxf7+ {[%clk 0:01:32.4]} 30... Kf8
{[%clk 0:00:07.4]} 31. Qxf5 {[%clk 0:00:50.9]} 31... Bxf5 {[%clk 0:00:08.4]} 32.
d7 {[%clk 0:00:52.6]} 32... b4 {[%clk 0:00:03.5]} 33. Re8+ {[%clk 0:00:52.1]}
33... Kxf7 {[%clk 0:00:04.2]} 34. Rxa8 {[%clk 0:00:53.2]} 34... Bxd7 {[%clk
0:00:05.3]} 35. Rxa5 {[%clk 0:00:54.4]} 35... bxa3 {[%clk 0:00:05.6]} 36. bxa3
{[%clk 0:00:56.3]} 36... Kxf6 {[%clk 0:00:06.9]} 37. Kf2 {[%clk 0:00:57.8]}
37... Ke6 {[%clk 0:00:08]} 38. Ke3 {[%clk 0:00:59.4]} 38... Kd6 {[%clk
0:00:09.4]} 39. Kd4 {[%clk 0:01:01.1]} 39... Be6 {[%clk 0:00:10.6]} 40. Rc5
{[%clk 0:01:01.9]} 40... Bd5 {[%clk 0:00:11.6]} 41. g3 {[%clk 0:01:02.7]} 41...
g5 {[%clk 0:00:12.1]} 42. h4 {[%clk 0:01:03.6]} 42... gxh4 {[%clk 0:00:08.6]}
43. gxh4 {[%clk 0:01:05.5]} 43... Ke6 {[%clk 0:00:08.5]} 44. a4 {[%clk 0:01:07]}
44... Kd6 {[%clk 0:00:09]} 45. a5 {[%clk 0:01:08.6]} 45... Kc7 {[%clk
0:00:09.5]} 46. Rxd5 {[%clk 0:01:05]} 46... cxd5 {[%clk 0:00:10.5]} 47. Kxd5
{[%clk 0:01:06.9]} 47... Kb7 {[%clk 0:00:11.8]} 48. Ke5 {[%clk 0:01:08.5]} 48...
Ka6 {[%clk 0:00:13.7]} 49. Kf5 {[%clk 0:01:10.1]} 49... Kxa5 {[%clk 0:00:15.6]}
50. Kg5 {[%clk 0:01:12]} 50... Kb5 {[%clk 0:00:17.5]} 51. Kxh5 {[%clk
0:01:13.8]} 51... Kc5 {[%clk 0:00:19.4]} 52. Kg6 {[%clk 0:01:15.7]} 52... Kd6
{[%clk 0:00:21.3]} 53. h5 {[%clk 0:01:17.1]} 53... Ke7 {[%clk 0:00:23]} 54. h6
{[%clk 0:01:18.8]} 54... Kf8 {[%clk 0:00:24]} 55. h7 {[%clk 0:01:20.5]} 55...
Ke7 {[%clk 0:00:25.2]} 56. h8=Q {[%clk 0:01:22.1]} 1-0

[Event "*** MasterClass Titled Tuesday Blitz"]
[Site "Chess.com"]
[Date "2017.08.01"]
[Round "9"]
[White "Rodalquilar"]
[Black "krzyzan94"]
[Result "0-1"]
[WhiteElo "2544"]
[BlackElo "2556"]
[TimeControl "180+2"]
[EndTime "15:05:01 PDT"]
[Termination "krzyzan94 won on time"]

1. d4 {[%clk 0:03:01.9]} 1... Nf6 {[%clk 0:03:00.9]} 2. Bf4 {[%clk 0:03:03]}
2... g6 {[%clk 0:02:57.2]} 3. e3 {[%clk 0:03:04.1]} 3... Bg7 {[%clk 0:02:58.9]}
4. Nf3 {[%clk 0:03:05.7]} 4... O-O {[%clk 0:03:00.5]} 5. Be2 {[%clk 0:03:07.2]}
5... d6 {[%clk 0:03:02.1]} 6. O-O {[%clk 0:03:08.5]} 6... Nbd7 {[%clk
0:03:03.8]} 7. h3 {[%clk 0:03:09.8]} 7... Qe8 {[%clk 0:03:05.4]} 8. c4 {[%clk
0:03:09.5]} 8... e5 {[%clk 0:03:06.8]} 9. Bh2 {[%clk 0:03:10.9]} 9... Qe7 {[%clk
0:03:07.4]} 10. Nc3 {[%clk 0:03:09.5]} 10... c6 {[%clk 0:03:08.7]} 11. Rc1
{[%clk 0:02:40.7]} 11... Ne8 {[%clk 0:03:04.9]} 12. b4 {[%clk 0:02:41.1]} 12...
e4 {[%clk 0:02:59.3]} 13. Nd2 {[%clk 0:02:38.8]} 13... f5 {[%clk 0:03:00.8]} 14.
Qb3 {[%clk 0:02:35.7]} 14... g5 {[%clk 0:02:59.2]} 15. b5 {[%clk 0:02:08.9]}
15... Kh8 {[%clk 0:02:53.3]} 16. a4 {[%clk 0:02:06]} 16... Ndf6 {[%clk
0:02:36.7]} 17. a5 {[%clk 0:02:02.8]} 17... f4 {[%clk 0:02:16.8]} 18. exf4
{[%clk 0:01:53.9]} 18... e3 {[%clk 0:02:17.8]} 19. fxg5 {[%clk 0:01:05.5]} 19...
exd2 {[%clk 0:02:02.1]} 20. gxf6 {[%clk 0:01:07]} 20... Bxf6 {[%clk 0:01:35.9]}
21. Rcd1 {[%clk 0:01:05.4]} 21... Bxd4 {[%clk 0:01:30]} 22. Rxd2 {[%clk
0:01:06.8]} 22... c5 {[%clk 0:01:31.5]} 23. Nd5 {[%clk 0:00:53.9]} 23... Qg5
{[%clk 0:01:32.6]} 24. Rxd4 {[%clk 0:00:42.4]} 24... cxd4 {[%clk 0:01:33]} 25.
Qd3 {[%clk 0:00:43.7]} 25... Qg7 {[%clk 0:01:26.7]} 26. Bf3 {[%clk 0:00:42.2]}
26... Bxh3 {[%clk 0:01:24.2]} 27. a6 {[%clk 0:00:37.1]} 27... bxa6 {[%clk
0:01:19.8]} 28. Nf4 {[%clk 0:00:38.2]} 28... Bf5 {[%clk 0:01:16.9]} 29. Be4
{[%clk 0:00:35.9]} 29... Bxe4 {[%clk 0:01:15.4]} 30. Qxe4 {[%clk 0:00:37.8]}
30... Nf6 {[%clk 0:01:17]} 31. Qxd4 {[%clk 0:00:39]} 31... Rae8 {[%clk
0:01:10.1]} 32. Qxd6 {[%clk 0:00:34.8]} 32... Ne4 {[%clk 0:01:05.5]} 33. Qxa6
{[%clk 0:00:32.7]} 33... Nd2 {[%clk 0:01:03.7]} 34. Ne6 {[%clk 0:00:09.7]} 34...
Nf3+ {[%clk 0:00:35.1]} 35. Kh1 {[%clk 0:00:11.2]} 35... Qh6 {[%clk 0:00:35.8]}
36. gxf3 {[%clk 0:00:12.6]} 36... Rxe6 {[%clk 0:00:36.6]} 37. Qa1+ {[%clk
0:00:14.4]} 37... Kg8 {[%clk 0:00:37.5]} 38. Rg1+ {[%clk 0:00:15.2]} 38... Rg6
{[%clk 0:00:38.7]} 39. c5 {[%clk 0:00:15.3]} 39... Rxf3 {[%clk 0:00:37.6]} 40.
c6 {[%clk 0:00:11.7]} 40... Rxf2 {[%clk 0:00:37.7]} 41. Rxg6+ {[%clk 0:00:12.9]}
41... hxg6 {[%clk 0:00:38.2]} 42. Qg1 {[%clk 0:00:11.1]} 42... Rc2 {[%clk
0:00:36.7]} 43. Qd1 {[%clk 0:00:07.9]} 43... Rc1 {[%clk 0:00:37.7]} 44. Qxc1
{[%clk 0:00:04.4]} 44... Qxc1+ {[%clk 0:00:39.6]} 45. Kg2 {[%clk 0:00:06.3]}
45... Qb2+ {[%clk 0:00:40.8]} 46. Kf3 {[%clk 0:00:07.2]} 46... Qxb5 {[%clk
0:00:42.4]} 47. c7 {[%clk 0:00:08.8]} 47... Qc6+ {[%clk 0:00:43.6]} 48. Kg4
{[%clk 0:00:10.4]} 48... Kf7 {[%clk 0:00:45.2]} 49. Kg5 {[%clk 0:00:12.1]} 49...
a5 {[%clk 0:00:46.2]} 0-1

[Event "*** MasterClass Titled Tuesday Blitz"]
[Site "Chess.com"]
[Date "2017.08.01"]
[Round "9"]
[White "nekochabo"]
[Black "ehrenfeld"]
[Result "1-0"]
[WhiteElo "2552"]
[BlackElo "2415"]
[TimeControl "180+2"]
[EndTime "15:05:07 PDT"]
[Termination "nekochabo won by resignation"]

1. Nf3 {[%clk 0:03:01.9]} 1... d6 {[%clk 0:03:00.4]} 2. d4 {[%clk 0:03:02.7]}
2... Bg4 {[%clk 0:03:01.2]} 3. c4 {[%clk 0:03:01.9]} 3... Bxf3 {[%clk
0:03:02.1]} 4. gxf3 {[%clk 0:03:03.3]} 4... g6 {[%clk 0:03:01.5]} 5. e4 {[%clk
0:02:58.8]} 5... Bg7 {[%clk 0:03:02.2]} 6. Nc3 {[%clk 0:03:00.3]} 6... Nc6
{[%clk 0:03:00]} 7. d5 {[%clk 0:03:00.5]} 7... Nd4 {[%clk 0:02:59.6]} 8. Be3
{[%clk 0:03:00]} 8... c5 {[%clk 0:02:57.9]} 9. dxc6 {[%clk 0:03:00.1]} 9... Nxc6
{[%clk 0:02:57.9]} 10. Qd2 {[%clk 0:03:01.6]} 10... Nf6 {[%clk 0:02:55.4]} 11.
h4 {[%clk 0:02:59.8]} 11... Rc8 {[%clk 0:02:55.4]} 12. Bh3 {[%clk 0:02:58.1]}
12... e6 {[%clk 0:02:43.5]} 13. f4 {[%clk 0:02:46.2]} 13... Na5 {[%clk
0:02:35.3]} 14. b3 {[%clk 0:02:40.6]} 14... a6 {[%clk 0:02:24.7]} 15. Rd1 {[%clk
0:02:34.9]} 15... O-O {[%clk 0:02:06.9]} 16. Qxd6 {[%clk 0:02:09.1]} 16... Qxd6
{[%clk 0:02:06.8]} 17. Rxd6 {[%clk 0:02:11]} 17... Ne8 {[%clk 0:02:00.6]} 18.
Rd3 {[%clk 0:02:12.1]} 18... b5 {[%clk 0:01:57.8]} 19. c5 {[%clk 0:02:13.4]}
19... Nf6 {[%clk 0:01:26.5]} 20. e5 {[%clk 0:02:10.8]} 20... Nh5 {[%clk
0:01:27.3]} 21. Ne4 {[%clk 0:02:06.1]} 21... Bh6 {[%clk 0:01:19.7]} 22. Ng5
{[%clk 0:02:04.6]} 22... Rfd8 {[%clk 0:01:09.4]} 23. Rxd8+ {[%clk 0:02:03.3]}
23... Rxd8 {[%clk 0:01:10.2]} 24. Ke2 {[%clk 0:02:04.8]} 24... Nc6 {[%clk
0:01:05.6]} 25. Rd1 {[%clk 0:01:48.1]} 25... Rxd1 {[%clk 0:01:05.3]} 26. Kxd1
{[%clk 0:01:50]} 26... Nb4 {[%clk 0:01:06]} 27. a3 {[%clk 0:01:47.5]} 27... Nd5
{[%clk 0:01:04.7]} 28. c6 {[%clk 0:01:36.3]} 28... Bxg5 {[%clk 0:00:51.2]} 29.
fxg5 {[%clk 0:01:29.1]} 29... Kf8 {[%clk 0:00:38.6]} 30. Bc5+ {[%clk 0:01:30.1]}
30... Ke8 {[%clk 0:00:39.3]} 31. Kc2 {[%clk 0:01:21.1]} 31... Kd8 {[%clk
0:00:33.8]} 32. Bd6 {[%clk 0:01:20.1]} 32... Ng7 {[%clk 0:00:20.8]} 33. a4
{[%clk 0:01:16.4]} 33... Nf5 {[%clk 0:00:20.9]} 34. Bf1 {[%clk 0:01:06.1]} 34...
Nd4+ {[%clk 0:00:20.5]} 35. Kb2 {[%clk 0:01:06.8]} 35... Kc8 {[%clk 0:00:09.4]}
36. Bc5 {[%clk 0:01:00]} 36... Nxc6 {[%clk 0:00:10.1]} 37. axb5 {[%clk
0:00:59.1]} 37... axb5 {[%clk 0:00:11.3]} 38. Bxb5 {[%clk 0:00:56.9]} 38... Nxe5
{[%clk 0:00:12.4]} 39. Bd6 {[%clk 0:00:44.8]} 39... Nd7 {[%clk 0:00:08.5]} 40.
Bd3 {[%clk 0:00:38.1]} 40... Kb7 {[%clk 0:00:07.7]} 41. Bb5 {[%clk 0:00:36.9]}
41... Kc8 {[%clk 0:00:04.9]} 42. Bc6 {[%clk 0:00:34.2]} 42... Nc7 {[%clk
0:00:04.9]} 43. b4 {[%clk 0:00:33.7]} 43... Nb6 {[%clk 0:00:06]} 44. Kb3 {[%clk
0:00:29.9]} 44... Nbd5 {[%clk 0:00:06.7]} 45. b5 {[%clk 0:00:30.6]} 45... Kd8
{[%clk 0:00:05.4]} 46. Ka4 {[%clk 0:00:30.6]} 46... Nb6+ {[%clk 0:00:05.9]} 47.
Kb4 {[%clk 0:00:31.9]} 47... Nbd5+ {[%clk 0:00:07.1]} 48. Ka5 {[%clk 0:00:33.2]}
48... Kc8 {[%clk 0:00:07.6]} 49. b6 {[%clk 0:00:34.2]} 1-0

[Event "*** MasterClass Titled Tuesday Blitz"]
[Site "Chess.com"]
[Date "2017.08.01"]
[Round "9"]
[White "maciek_92"]
[Black "GMMarcinDziuba"]
[Result "0-1"]
[WhiteElo "2533"]
[BlackElo "2565"]
[TimeControl "180+2"]
[EndTime "15:05:14 PDT"]
[Termination "GMMarcinDziuba won by checkmate"]

1. c4 {[%clk 0:03:01.9]} 1... e6 {[%clk 0:02:53.8]} 2. Nf3 {[%clk 0:03:02.3]}
2... d5 {[%clk 0:02:55.4]} 3. g3 {[%clk 0:03:03.7]} 3... Nf6 {[%clk 0:02:57]} 4.
Bg2 {[%clk 0:03:04.8]} 4... Be7 {[%clk 0:02:57.8]} 5. O-O {[%clk 0:03:06]} 5...
O-O {[%clk 0:02:59]} 6. b3 {[%clk 0:03:06.1]} 6... d4 {[%clk 0:03:00.4]} 7. e3
{[%clk 0:03:03.5]} 7... c5 {[%clk 0:03:01.6]} 8. Bb2 {[%clk 0:02:58.1]} 8... Nc6
{[%clk 0:03:01.9]} 9. exd4 {[%clk 0:02:57.3]} 9... cxd4 {[%clk 0:03:02.9]} 10.
Re1 {[%clk 0:02:58.8]} 10... a5 {[%clk 0:02:49.3]} 11. a3 {[%clk 0:02:58.6]}
11... Re8 {[%clk 0:02:44.4]} 12. d3 {[%clk 0:02:55.6]} 12... Bc5 {[%clk
0:02:36.4]} 13. Nbd2 {[%clk 0:02:49.3]} 13... h6 {[%clk 0:02:37.2]} 14. Ne5
{[%clk 0:02:40.6]} 14... Nxe5 {[%clk 0:02:38.1]} 15. Rxe5 {[%clk 0:02:42.5]}
15... Qc7 {[%clk 0:02:39.1]} 16. Qe1 {[%clk 0:02:35.2]} 16... Bd7 {[%clk
0:02:28.6]} 17. Nf3 {[%clk 0:02:11.2]} 17... Qb6 {[%clk 0:02:25.6]} 18. Rxc5
{[%clk 0:02:05.7]} 18... Qxc5 {[%clk 0:02:26]} 19. Bxd4 {[%clk 0:02:07.3]} 19...
Qe7 {[%clk 0:02:23.9]} 20. Ne5 {[%clk 0:02:03]} 20... Reb8 {[%clk 0:02:19.7]}
21. Qc3 {[%clk 0:02:02.6]} 21... Be8 {[%clk 0:02:18.5]} 22. Re1 {[%clk
0:02:00.9]} 22... Ra6 {[%clk 0:02:19.4]} 23. b4 {[%clk 0:01:30.2]} 23... axb4
{[%clk 0:02:20.3]} 24. axb4 {[%clk 0:01:32.1]} 24... b5 {[%clk 0:02:21.9]} 25.
Bc5 {[%clk 0:01:08.2]} 25... Qc7 {[%clk 0:02:06.4]} 26. h4 {[%clk 0:01:04]}
26... Nd7 {[%clk 0:01:57.3]} 27. Bd4 {[%clk 0:01:01.8]} 27... f6 {[%clk
0:01:54.5]} 28. Ng4 {[%clk 0:00:44.2]} 28... Bf7 {[%clk 0:01:39.9]} 29. c5
{[%clk 0:00:40.1]} 29... h5 {[%clk 0:01:35.3]} 30. Nh2 {[%clk 0:00:38]} 30...
Rd8 {[%clk 0:01:36.8]} 31. Be3 {[%clk 0:00:30.5]} 31... Nb8 {[%clk 0:01:37.8]}
32. d4 {[%clk 0:00:25.8]} 32... Nc6 {[%clk 0:01:38.2]} 33. Bf4 {[%clk
0:00:27.1]} 33... Qa7 {[%clk 0:00:53.3]} 34. Bd6 {[%clk 0:00:27.4]} 34... Ra3
{[%clk 0:00:54.1]} 35. Qd2 {[%clk 0:00:25.4]} 35... Ra2 {[%clk 0:00:47.9]} 36.
Qd3 {[%clk 0:00:26.6]} 36... Nxb4 {[%clk 0:00:43]} 37. Qxb5 {[%clk 0:00:26.9]}
37... Nc2 {[%clk 0:00:44.1]} 38. Rd1 {[%clk 0:00:23.5]} 38... Ra1 {[%clk
0:00:45.1]} 39. Qd3 {[%clk 0:00:23.1]} 39... Ne1 {[%clk 0:00:41.2]} 40. Qe2
{[%clk 0:00:21.4]} 40... Nxg2 {[%clk 0:00:38.3]} 41. Kxg2 {[%clk 0:00:22.2]}
41... Rxd1 {[%clk 0:00:36.8]} 42. Qxd1 {[%clk 0:00:24.1]} 42... Qb7+ {[%clk
0:00:37.6]} 43. Kg1 {[%clk 0:00:23.8]} 43... Ra8 {[%clk 0:00:34.4]} 44. Nf1
{[%clk 0:00:24]} 44... Be8 {[%clk 0:00:33.6]} 45. Qe2 {[%clk 0:00:22.7]} 45...
Qd5 {[%clk 0:00:33.1]} 46. Kh2 {[%clk 0:00:06.5]} 46... Bc6 {[%clk 0:00:32.4]}
47. f3 {[%clk 0:00:08.1]} 47... Ra2 {[%clk 0:00:29.7]} 48. Nd2 {[%clk
0:00:09.7]} 48... Qxf3 {[%clk 0:00:30.1]} 49. Qxe6+ {[%clk 0:00:08.5]} 49... Kh7
{[%clk 0:00:28.2]} 50. Qxa2 {[%clk 0:00:09.3]} 50... Qg2# {[%clk 0:00:28]} 0-1

[Event "*** MasterClass Titled Tuesday Blitz"]
[Site "Chess.com"]
[Date "2017.08.01"]
[Round "9"]
[White "Saitama_Hero"]
[Black "Keaton87"]
[Result "1-0"]
[WhiteElo "2235"]
[BlackElo "2457"]
[TimeControl "180+2"]
[EndTime "15:05:14 PDT"]
[Termination "Saitama_Hero won by checkmate"]

1. e4 {[%clk 0:03:01.9]} 1... c5 {[%clk 0:02:47.2]} 2. Nf3 {[%clk 0:03:01.8]}
2... d6 {[%clk 0:02:45]} 3. Bb5+ {[%clk 0:03:03.2]} 3... Bd7 {[%clk 0:02:41.4]}
4. Bxd7+ {[%clk 0:03:04.6]} 4... Nxd7 {[%clk 0:02:42.1]} 5. O-O {[%clk
0:03:05.4]} 5... Ngf6 {[%clk 0:02:39.7]} 6. Re1 {[%clk 0:03:04.5]} 6... e6
{[%clk 0:02:39.4]} 7. c3 {[%clk 0:03:04.5]} 7... Be7 {[%clk 0:02:38.1]} 8. d4
{[%clk 0:03:05.9]} 8... cxd4 {[%clk 0:02:38.4]} 9. cxd4 {[%clk 0:03:07.8]} 9...
d5 {[%clk 0:02:39.3]} 10. e5 {[%clk 0:03:09.1]} 10... Ne4 {[%clk 0:02:39.8]} 11.
Nbd2 {[%clk 0:03:09.8]} 11... Nxd2 {[%clk 0:02:40.2]} 12. Bxd2 {[%clk
0:03:11.4]} 12... O-O {[%clk 0:02:28.6]} 13. Rc1 {[%clk 0:03:12.8]} 13... Rc8
{[%clk 0:02:17.9]} 14. Rc3 {[%clk 0:03:12.2]} 14... Rxc3 {[%clk 0:02:17.5]} 15.
bxc3 {[%clk 0:03:12.8]} 15... Qa5 {[%clk 0:02:17.8]} 16. Qb1 {[%clk 0:03:12.4]}
16... Nb6 {[%clk 0:02:16.9]} 17. c4 {[%clk 0:02:58.3]} 17... Qa6 {[%clk
0:02:07.4]} 18. c5 {[%clk 0:02:57.7]} 18... Nc4 {[%clk 0:02:07.7]} 19. Bg5
{[%clk 0:02:59.2]} 19... Bxg5 {[%clk 0:01:42.1]} 20. Nxg5 {[%clk 0:03:01.1]}
20... g6 {[%clk 0:01:43.5]} 21. h4 {[%clk 0:02:24.6]} 21... b6 {[%clk
0:01:42.2]} 22. h5 {[%clk 0:02:10.5]} 22... bxc5 {[%clk 0:01:36.6]} 23. hxg6
{[%clk 0:02:09.6]} 23... fxg6 {[%clk 0:01:33.8]} 24. dxc5 {[%clk 0:02:09.7]}
24... Nd2 {[%clk 0:01:28.9]} 25. Qc2 {[%clk 0:02:02.9]} 25... Qa5 {[%clk
0:01:22.1]} 26. Rd1 {[%clk 0:01:52.2]} 26... Nc4 {[%clk 0:01:05.8]} 27. Nxe6
{[%clk 0:01:51.7]} 27... Re8 {[%clk 0:01:06.2]} 28. Nf4 {[%clk 0:01:47.5]} 28...
Rxe5 {[%clk 0:00:57.2]} 29. Nxd5 {[%clk 0:01:47.3]} 29... Re1+ {[%clk
0:00:55.4]} 30. Kh2 {[%clk 0:01:04.5]} 30... Rxd1 {[%clk 0:00:55.1]} 31. Qxd1
{[%clk 0:01:05]} 31... Qxc5 {[%clk 0:00:55.9]} 32. Qf3 {[%clk 0:00:49.2]} 32...
Qd6+ {[%clk 0:00:50.5]} 33. g3 {[%clk 0:00:48.5]} 33... Ne5 {[%clk 0:00:49.8]}
34. Qb3 {[%clk 0:00:49]} 34... a5 {[%clk 0:00:31.3]} 35. Nf6+ {[%clk 0:00:46.2]}
35... Kf8 {[%clk 0:00:28.4]} 36. Nxh7+ {[%clk 0:00:46.2]} 36... Kg7 {[%clk
0:00:28.9]} 37. Ng5 {[%clk 0:00:44.8]} 37... Qd2 {[%clk 0:00:23.4]} 38. Qb7+
{[%clk 0:00:44.6]} 38... Kh6 {[%clk 0:00:17.3]} 39. Ne4 {[%clk 0:00:33.6]} 39...
Qxa2 {[%clk 0:00:17.3]} 40. Qe7 {[%clk 0:00:28.7]} 40... Nf7 {[%clk 0:00:05]}
41. Qf8+ {[%clk 0:00:23]} 41... Kh7 {[%clk 0:00:04.7]} 42. Nf6# {[%clk
0:00:21.1]} 1-0

[Event "*** MasterClass Titled Tuesday Blitz"]
[Site "Chess.com"]
[Date "2017.08.01"]
[Round "9"]
[White "Cryptochess"]
[Black "TregubovP"]
[Result "1-0"]
[WhiteElo "2496"]
[BlackElo "2512"]
[TimeControl "180+2"]
[EndTime "15:05:31 PDT"]
[Termination "Cryptochess won by resignation"]

1. e4 {[%clk 0:02:59.6]} 1... c5 {[%clk 0:03:01]} 2. Nc3 {[%clk 0:03:00.1]} 2...
e6 {[%clk 0:03:02.1]} 3. g3 {[%clk 0:03:01.3]} 3... d5 {[%clk 0:03:03.2]} 4. Bg2
{[%clk 0:03:00.5]} 4... Nf6 {[%clk 0:03:01]} 5. d3 {[%clk 0:03:00.6]} 5... dxe4
{[%clk 0:02:52.8]} 6. Nxe4 {[%clk 0:03:01]} 6... Nxe4 {[%clk 0:02:52.9]} 7. Bxe4
{[%clk 0:03:02.1]} 7... Nd7 {[%clk 0:02:46.6]} 8. Ne2 {[%clk 0:03:03]} 8... Nf6
{[%clk 0:02:47.7]} 9. Bg2 {[%clk 0:03:03.7]} 9... Bd6 {[%clk 0:02:48.2]} 10. O-O
{[%clk 0:03:04.2]} 10... O-O {[%clk 0:02:49.4]} 11. Bg5 {[%clk 0:03:04.7]} 11...
h6 {[%clk 0:02:48.7]} 12. Be3 {[%clk 0:02:57]} 12... Rb8 {[%clk 0:02:36.1]} 13.
Nc3 {[%clk 0:02:57.3]} 13... b6 {[%clk 0:02:32.6]} 14. Nb5 {[%clk 0:02:56.3]}
14... Bb7 {[%clk 0:02:27.7]} 15. d4 {[%clk 0:02:47.8]} 15... Bxg2 {[%clk
0:02:27.1]} 16. Kxg2 {[%clk 0:02:48.6]} 16... Nd5 {[%clk 0:02:23.5]} 17. c4
{[%clk 0:02:39.2]} 17... Nxe3+ {[%clk 0:02:23.7]} 18. fxe3 {[%clk 0:02:40.1]}
18... a6 {[%clk 0:02:16.1]} 19. Nc3 {[%clk 0:02:39.3]} 19... cxd4 {[%clk
0:02:03]} 20. exd4 {[%clk 0:02:38.9]} 20... Qc7 {[%clk 0:02:04.6]} 21. b3 {[%clk
0:02:38.8]} 21... b5 {[%clk 0:02:04]} 22. c5 {[%clk 0:02:37.4]} 22... Be7 {[%clk
0:02:04.9]} 23. b4 {[%clk 0:02:37.2]} 23... Rbd8 {[%clk 0:02:01.9]} 24. Qg4
{[%clk 0:02:37.3]} 24... f5 {[%clk 0:01:48.8]} 25. Qe2 {[%clk 0:02:34.6]} 25...
Qc6+ {[%clk 0:01:48.3]} 26. d5 {[%clk 0:02:34.5]} 26... exd5 {[%clk 0:01:44.4]}
27. Qxe7 {[%clk 0:02:16]} 27... d4+ {[%clk 0:01:44.9]} 28. Kg1 {[%clk
0:02:13.5]} 28... dxc3 {[%clk 0:01:45.9]} 29. Qe5 {[%clk 0:02:08.8]} 29... Rd2
{[%clk 0:01:41.2]} 30. Rf2 {[%clk 0:02:04.8]} 30... f4 {[%clk 0:01:15.7]} 31.
Rxd2 {[%clk 0:01:26]} 31... cxd2 {[%clk 0:01:15.7]} 32. Rd1 {[%clk 0:01:26.6]}
32... Qf3 {[%clk 0:01:10.3]} 33. Rxd2 {[%clk 0:01:25.3]} 33... fxg3 {[%clk
0:01:11.4]} 34. hxg3 {[%clk 0:01:24]} 34... Rf5 {[%clk 0:01:08.1]} 35. Qe1
{[%clk 0:00:49.5]} 35... Rg5 {[%clk 0:01:03.1]} 36. Rg2 {[%clk 0:00:41.1]} 36...
Rd5 {[%clk 0:00:58]} 37. Re2 {[%clk 0:00:34.3]} 37... Kh7 {[%clk 0:00:52.2]} 38.
Qf2 {[%clk 0:00:34.1]} 38... Qg4 {[%clk 0:00:45.9]} 39. Qe3 {[%clk 0:00:25.4]}
39... Qxb4 {[%clk 0:00:43.8]} 40. c6 {[%clk 0:00:19.4]} 40... Qc5 {[%clk
0:00:39.3]} 41. Qxc5 {[%clk 0:00:11.1]} 41... Rxc5 {[%clk 0:00:40]} 42. Re6
{[%clk 0:00:12.2]} 42... a5 {[%clk 0:00:40.4]} 43. Kf2 {[%clk 0:00:12.8]} 43...
b4 {[%clk 0:00:39.4]} 44. Ke3 {[%clk 0:00:13.8]} 44... Rc3+ {[%clk 0:00:39.2]}
45. Kd4 {[%clk 0:00:14.7]} 45... Rxg3 {[%clk 0:00:39.8]} 46. Re5 {[%clk
0:00:14.3]} 46... Rg1 {[%clk 0:00:22.6]} 47. c7 {[%clk 0:00:13.5]} 47... Rd1+
{[%clk 0:00:23.2]} 48. Kc5 {[%clk 0:00:14.3]} 48... Rc1+ {[%clk 0:00:22.4]} 49.
Kb6 {[%clk 0:00:15.1]} 49... Rxc7 {[%clk 0:00:21.9]} 50. Kxc7 {[%clk 0:00:15.9]}
50... Kg6 {[%clk 0:00:21]} 51. Rxa5 {[%clk 0:00:15.9]} 51... h5 {[%clk
0:00:22.1]} 52. Rb5 {[%clk 0:00:16.6]} 52... h4 {[%clk 0:00:22.9]} 53. Rxb4
{[%clk 0:00:17.7]} 53... Kg5 {[%clk 0:00:24]} 54. a4 {[%clk 0:00:18.4]} 54... h3
{[%clk 0:00:25.3]} 55. a5 {[%clk 0:00:19.1]} 55... h2 {[%clk 0:00:25.8]} 56. Rb1
{[%clk 0:00:19.8]} 56... Kg4 {[%clk 0:00:26.4]} 57. a6 {[%clk 0:00:20.7]} 1-0